[Event "*** MasterClass Titled Tuesday Blitz"]
[Site "Chess.com"]
[Date "2017.09.05"]
[Round "8"]
[White "kikydu96"]
[Black "swayamsm"]
[Result "1-0"]
[WhiteElo "2330"]
[BlackElo "2509"]
[TimeControl "180+2"]
[EndTime "14:58:57 PDT"]
[Termination "kikydu96 won by resignation"]

1. e4 {[%clk 0:03:01.1]} 1... e5 {[%clk 0:02:55.6]} 2. Nf3 {[%clk 0:03:01.6]}
2... Nc6 {[%clk 0:02:51]} 3. Bc4 {[%clk 0:03:02.9]} 3... Nf6 {[%clk 0:02:45.8]}
4. d3 {[%clk 0:03:03.1]} 4... Be7 {[%clk 0:02:45.7]} 5. O-O {[%clk 0:03:01.5]}
5... O-O {[%clk 0:02:47]} 6. h3 {[%clk 0:03:00.5]} 6... d5 {[%clk 0:02:42.6]} 7.
exd5 {[%clk 0:03:00.4]} 7... Nxd5 {[%clk 0:02:44.5]} 8. Nc3 {[%clk 0:03:00.8]}
8... Nxc3 {[%clk 0:02:42.3]} 9. bxc3 {[%clk 0:03:02.3]} 9... Bd6 {[%clk
0:02:38.2]} 10. Rb1 {[%clk 0:03:01.3]} 10... Kh8 {[%clk 0:02:27.3]} 11. Ng5
{[%clk 0:02:54.3]} 11... Qf6 {[%clk 0:01:10.8]} 12. Qh5 {[%clk 0:02:50.4]} 12...
h6 {[%clk 0:01:11.3]} 13. Nxf7+ {[%clk 0:02:16.1]} 13... Kh7 {[%clk 0:01:10.3]}
14. Ng5+ {[%clk 0:02:07.3]} 14... Kh8 {[%clk 0:01:10.4]} 15. Ne4 {[%clk
0:02:08.1]} 15... Qf5 {[%clk 0:01:05.8]} 16. Qxf5 {[%clk 0:01:59.4]} 16... Rxf5
{[%clk 0:01:07.7]} 17. Bd5 {[%clk 0:01:52.5]} 17... Ne7 {[%clk 0:01:03.7]} 18.
Bxb7 {[%clk 0:01:44.7]} 18... Rb8 {[%clk 0:00:47.2]} 19. Bxc8 {[%clk 0:01:45.4]}
19... Rxb1 {[%clk 0:00:43.6]} 20. Bxf5 {[%clk 0:01:44.9]} 20... Nxf5 {[%clk
0:00:45.9]} 21. g4 {[%clk 0:01:19.9]} 21... Nh4 {[%clk 0:00:41.8]} 22. Nd2
{[%clk 0:01:02.6]} 22... Ra1 {[%clk 0:00:41]} 23. a3 {[%clk 0:00:48.8]} 23...
Ra2 {[%clk 0:00:34.4]} 24. Ne4 {[%clk 0:00:36.4]} 24... Rxc2 {[%clk 0:00:33.9]}
25. Be3 {[%clk 0:00:37.3]} 25... a5 {[%clk 0:00:31.1]} 26. Rb1 {[%clk
0:00:37.2]} 26... Bxa3 {[%clk 0:00:28]} 27. Rb8+ {[%clk 0:00:36.4]} 27... Kh7
{[%clk 0:00:28.9]} 28. Ra8 {[%clk 0:00:37.8]} 28... Bc1 {[%clk 0:00:25.8]} 29.
Rxa5 {[%clk 0:00:28]} 29... Bxe3 {[%clk 0:00:25.4]} 30. fxe3 {[%clk 0:00:29.5]}
30... Nf3+ {[%clk 0:00:18.1]} 31. Kf1 {[%clk 0:00:29.5]} 31... Nd2+ {[%clk
0:00:09.4]} 32. Ke1 {[%clk 0:00:29.9]} 32... Nxe4 {[%clk 0:00:09.4]} 33. dxe4
{[%clk 0:00:29.5]} 33... Rxc3 {[%clk 0:00:10.6]} 34. Kd2 {[%clk 0:00:30.9]}
34... Rb3 {[%clk 0:00:09.7]} 35. Rxe5 {[%clk 0:00:31.8]} 35... Rb1 {[%clk
0:00:10.9]} 36. Rc5 {[%clk 0:00:28.2]} 36... Rh1 {[%clk 0:00:12.2]} 37. e5
{[%clk 0:00:28]} 37... Rxh3 {[%clk 0:00:12.8]} 38. e6 {[%clk 0:00:29.2]} 38...
Kg6 {[%clk 0:00:12.3]} 39. Re5 {[%clk 0:00:30.2]} 39... Rh2+ {[%clk 0:00:13.8]}
40. Kd3 {[%clk 0:00:30.7]} 40... Kf6 {[%clk 0:00:12.6]} 41. e7 {[%clk
0:00:31.9]} 41... Kxe5 {[%clk 0:00:14.2]} 42. e8=Q+ {[%clk 0:00:32.6]} 42... Kf6
{[%clk 0:00:16.1]} 43. Qd7 {[%clk 0:00:32.9]} 43... Rf2 {[%clk 0:00:15.9]} 44.
Qxc7 {[%clk 0:00:32.5]} 44... Kg6 {[%clk 0:00:17.4]} 45. e4 {[%clk 0:00:31.2]}
45... Rg2 {[%clk 0:00:15.2]} 46. Qf4 {[%clk 0:00:29.6]} 46... Kh7 {[%clk
0:00:13.4]} 47. e5 {[%clk 0:00:28.9]} 47... Ra2 {[%clk 0:00:11.9]} 48. Qf5+
{[%clk 0:00:28.4]} 48... Kh8 {[%clk 0:00:12]} 49. e6 {[%clk 0:00:29.5]} 49...
Ra3+ {[%clk 0:00:12.3]} 50. Kc4 {[%clk 0:00:30.1]} 50... Ra4+ {[%clk 0:00:13.4]}
51. Kb5 {[%clk 0:00:31]} 51... Ra8 {[%clk 0:00:13.2]} 52. e7 {[%clk 0:00:31.3]}
52... Rb8+ {[%clk 0:00:14.8]} 53. Kc6 {[%clk 0:00:31.6]} 1-0

[Event "*** MasterClass Titled Tuesday Blitz"]
[Site "Chess.com"]
[Date "2017.09.05"]
[Round "8"]
[White "danyuffa"]
[Black "michaelq2d5"]
[Result "1-0"]
[WhiteElo "2588"]
[BlackElo "2621"]
[TimeControl "180+2"]
[EndTime "14:59:03 PDT"]
[Termination "danyuffa won by resignation"]

1. d4 {[%clk 0:02:53.2]} 1... d5 {[%clk 0:03:00.5]} 2. c4 {[%clk 0:02:53.9]}
2... e6 {[%clk 0:03:01.7]} 3. Nf3 {[%clk 0:02:54.9]} 3... Nf6 {[%clk 0:03:02.9]}
4. g3 {[%clk 0:02:56.2]} 4... dxc4 {[%clk 0:02:58]} 5. Bg2 {[%clk 0:02:57.1]}
5... Nc6 {[%clk 0:02:59]} 6. O-O {[%clk 0:02:57.5]} 6... Rb8 {[%clk 0:03:00.2]}
7. Nc3 {[%clk 0:02:58.3]} 7... b5 {[%clk 0:02:57.3]} 8. Ne5 {[%clk 0:02:59.2]}
8... Nxe5 {[%clk 0:02:58.4]} 9. dxe5 {[%clk 0:02:59.9]} 9... Nd7 {[%clk
0:02:59.7]} 10. Bc6 {[%clk 0:03:00.8]} 10... a6 {[%clk 0:03:01.1]} 11. Qd4
{[%clk 0:03:01.9]} 11... Bb7 {[%clk 0:02:59.8]} 12. Bxb7 {[%clk 0:03:02.8]}
12... Rxb7 {[%clk 0:03:01.2]} 13. Rd1 {[%clk 0:03:04.2]} 13... c5 {[%clk
0:03:01.4]} 14. Qg4 {[%clk 0:03:05.1]} 14... Qc7 {[%clk 0:02:59.2]} 15. Bg5
{[%clk 0:03:04]} 15... h6 {[%clk 0:02:55.3]} 16. Rxd7 {[%clk 0:02:58.6]} 16...
Qxd7 {[%clk 0:02:34.3]} 17. Rd1 {[%clk 0:02:58.8]} 17... hxg5 {[%clk 0:02:35]}
18. Rxd7 {[%clk 0:02:55.8]} 18... Rxd7 {[%clk 0:02:36.4]} 19. Qe4 {[%clk
0:02:51.4]} 19... Be7 {[%clk 0:02:11.9]} 20. Qa8+ {[%clk 0:02:50.1]} 20... Rd8
{[%clk 0:02:10.3]} 21. Qc6+ {[%clk 0:02:46.6]} 21... Kf8 {[%clk 0:02:11.5]} 22.
Qxa6 {[%clk 0:02:47.7]} 22... b4 {[%clk 0:02:12.8]} 23. Ne4 {[%clk 0:02:48.1]}
23... Rd4 {[%clk 0:01:59.5]} 24. e3 {[%clk 0:02:46.7]} 24... Rd5 {[%clk
0:01:56.7]} 25. Qxc4 {[%clk 0:02:31.6]} 25... Rxe5 {[%clk 0:01:49.5]} 26. a4
{[%clk 0:02:32.5]} 26... bxa3 {[%clk 0:01:49.9]} 27. bxa3 {[%clk 0:02:33.8]}
27... g6 {[%clk 0:01:16.2]} 28. a4 {[%clk 0:01:59.7]} 28... Kg7 {[%clk
0:01:14.5]} 29. a5 {[%clk 0:01:32.5]} 29... Ra8 {[%clk 0:01:10.9]} 30. Qc3
{[%clk 0:01:30.4]} 30... f6 {[%clk 0:01:09.5]} 31. Nd2 {[%clk 0:01:31.4]} 31...
Rd5 {[%clk 0:01:04.4]} 32. Nc4 {[%clk 0:01:31.9]} 32... g4 {[%clk 0:00:55.6]}
33. Kg2 {[%clk 0:01:25.3]} 33... Bd8 {[%clk 0:00:43.3]} 34. Qb3 {[%clk
0:01:22.7]} 34... Rd7 {[%clk 0:00:28.4]} 35. Qb5 {[%clk 0:01:21.4]} 35... Rda7
{[%clk 0:00:25.4]} 36. Qc6 {[%clk 0:01:12.3]} 36... Bxa5 {[%clk 0:00:21.5]} 37.
Qxe6 {[%clk 0:01:11.7]} 37... Bd8 {[%clk 0:00:10.9]} 38. Qxg4 {[%clk 0:01:12.3]}
38... Be7 {[%clk 0:00:11.3]} 39. Qe6 {[%clk 0:01:13]} 39... Rd8 {[%clk
0:00:09.5]} 40. h4 {[%clk 0:01:13.8]} 40... Kf8 {[%clk 0:00:05.7]} 41. e4 {[%clk
0:00:56.8]} 41... Ra4 {[%clk 0:00:02.2]} 42. Nb6 {[%clk 0:00:48]} 42... Rad4
{[%clk 0:00:02.2]} 43. Nd5 {[%clk 0:00:47.1]} 43... R4xd5 {[%clk 0:00:03.5]} 44.
exd5 {[%clk 0:00:49]} 44... c4 {[%clk 0:00:05.1]} 45. Qc6 {[%clk 0:00:45.1]}
45... c3 {[%clk 0:00:06.3]} 46. Qxc3 {[%clk 0:00:41]} 46... Rxd5 {[%clk
0:00:07.3]} 47. Qc8+ {[%clk 0:00:41.6]} 47... Kg7 {[%clk 0:00:06.2]} 48. Qe6
{[%clk 0:00:41]} 48... Re5 {[%clk 0:00:07.6]} 49. Qg4 {[%clk 0:00:42]} 49... f5
{[%clk 0:00:07.2]} 50. Qc4 {[%clk 0:00:41.8]} 50... Bf6 {[%clk 0:00:08.8]} 51.
Qc7+ {[%clk 0:00:40.1]} 51... Re7 {[%clk 0:00:09.9]} 52. Qf4 {[%clk 0:00:40.8]}
52... Re4 {[%clk 0:00:10.9]} 53. Qf3 {[%clk 0:00:41.5]} 53... Bd4 {[%clk
0:00:10.5]} 54. Qd3 {[%clk 0:00:32.5]} 54... Kf6 {[%clk 0:00:09.7]} 55. f3
{[%clk 0:00:32.1]} 1-0

[Event "*** MasterClass Titled Tuesday Blitz"]
[Site "Chess.com"]
[Date "2017.09.05"]
[Round "8"]
[White "wonderfultime"]
[Black "SavelijTartakover"]
[Result "1-0"]
[WhiteElo "2664"]
[BlackElo "2550"]
[TimeControl "180+2"]
[EndTime "14:59:16 PDT"]
[Termination "wonderfultime won by resignation"]

1. d4 {[%clk 0:03:01.9]} 1... Nf6 {[%clk 0:02:16.7]} 2. c4 {[%clk 0:03:01.9]}
2... g6 {[%clk 0:02:17.4]} 3. Nc3 {[%clk 0:03:02.6]} 3... Bg7 {[%clk 0:02:18.4]}
4. e4 {[%clk 0:03:03.9]} 4... O-O {[%clk 0:02:18.8]} 5. f3 {[%clk 0:03:05.5]}
5... d6 {[%clk 0:02:19]} 6. Be3 {[%clk 0:03:06.9]} 6... b6 {[%clk 0:02:20.1]} 7.
Qd2 {[%clk 0:03:01.3]} 7... c5 {[%clk 0:02:19]} 8. d5 {[%clk 0:02:59.3]} 8... e6
{[%clk 0:02:18.8]} 9. Bd3 {[%clk 0:02:50.3]} 9... exd5 {[%clk 0:02:18.2]} 10.
cxd5 {[%clk 0:02:52.2]} 10... Nbd7 {[%clk 0:02:19]} 11. Nge2 {[%clk 0:02:53.2]}
11... Ne5 {[%clk 0:02:19.7]} 12. O-O {[%clk 0:02:54.4]} 12... Nxd3 {[%clk
0:02:20.1]} 13. Qxd3 {[%clk 0:02:55.5]} 13... a6 {[%clk 0:02:21.1]} 14. a4
{[%clk 0:02:56.3]} 14... Re8 {[%clk 0:02:16.4]} 15. Ng3 {[%clk 0:02:51.5]} 15...
Bd7 {[%clk 0:02:15.6]} 16. Rfe1 {[%clk 0:02:36]} 16... h5 {[%clk 0:02:08.7]} 17.
Nf1 {[%clk 0:02:34.8]} 17... Qc7 {[%clk 0:02:00.2]} 18. Nd2 {[%clk 0:02:28.7]}
18... h4 {[%clk 0:01:54.2]} 19. Bf2 {[%clk 0:02:06.4]} 19... h3 {[%clk
0:01:49.7]} 20. g3 {[%clk 0:02:07.1]} 20... Nh5 {[%clk 0:01:43.4]} 21. f4 {[%clk
0:01:45.7]} 21... Nf6 {[%clk 0:01:41.4]} 22. Kh1 {[%clk 0:01:42.3]} 22... Ng4
{[%clk 0:01:40.2]} 23. Bg1 {[%clk 0:01:43]} 23... f5 {[%clk 0:01:37.6]} 24. Qf3
{[%clk 0:01:27.5]} 24... fxe4 {[%clk 0:01:23.9]} 25. Ndxe4 {[%clk 0:01:29.4]}
25... Bf5 {[%clk 0:01:22.5]} 26. Ng5 {[%clk 0:01:30]} 26... Qd7 {[%clk
0:01:14.7]} 27. Ne6 {[%clk 0:01:15.2]} 27... Rab8 {[%clk 0:01:11.7]} 28. Re2
{[%clk 0:01:12.4]} 28... Re7 {[%clk 0:01:10.6]} 29. Rae1 {[%clk 0:01:11.6]}
29... Rbe8 {[%clk 0:01:11.9]} 30. Ne4 {[%clk 0:00:41.6]} 30... Rxe6 {[%clk
0:00:34.7]} 31. dxe6 {[%clk 0:00:43.5]} 31... Rxe6 {[%clk 0:00:34.6]} 32. Ng5
{[%clk 0:00:41.8]} 32... Rxe2 {[%clk 0:00:34]} 33. Rxe2 {[%clk 0:00:43.7]} 33...
Bf6 {[%clk 0:00:32.2]} 34. Nxh3 {[%clk 0:00:23]} 34... d5 {[%clk 0:00:29.1]} 35.
Ng5 {[%clk 0:00:15.7]} 35... Bxg5 {[%clk 0:00:28.8]} 36. fxg5 {[%clk 0:00:15.7]}
36... Be4 {[%clk 0:00:28.1]} 37. Rxe4 {[%clk 0:00:15.6]} 37... dxe4 {[%clk
0:00:29]} 38. Qxe4 {[%clk 0:00:17.5]} 38... Qf5 {[%clk 0:00:24.9]} 39. Qxf5
{[%clk 0:00:14]} 39... gxf5 {[%clk 0:00:25.7]} 40. a5 {[%clk 0:00:15.9]} 40...
bxa5 {[%clk 0:00:22.7]} 41. Bxc5 {[%clk 0:00:16.4]} 41... Ne5 {[%clk 0:00:19.6]}
42. Kg2 {[%clk 0:00:17.8]} 42... Kf7 {[%clk 0:00:16.9]} 43. Bd4 {[%clk 0:00:18]}
43... Nc4 {[%clk 0:00:15.6]} 44. Kf3 {[%clk 0:00:18]} 44... a4 {[%clk
0:00:14.5]} 45. g4 {[%clk 0:00:15.4]} 45... Kg6 {[%clk 0:00:14.6]} 46. h4 {[%clk
0:00:15.5]} 46... a5 {[%clk 0:00:10.6]} 47. Kf4 {[%clk 0:00:16.7]} 47... fxg4
{[%clk 0:00:09.9]} 48. Kxg4 {[%clk 0:00:18.6]} 48... a3 {[%clk 0:00:11.2]} 49.
h5+ {[%clk 0:00:19.9]} 49... Kf7 {[%clk 0:00:12.2]} 50. g6+ {[%clk 0:00:20.7]}
50... Ke6 {[%clk 0:00:13.2]} 51. bxa3 {[%clk 0:00:22]} 51... Nxa3 {[%clk
0:00:14.3]} 52. h6 {[%clk 0:00:23.4]} 52... Nb5 {[%clk 0:00:15.4]} 53. Ba1
{[%clk 0:00:22.9]} 1-0

[Event "*** MasterClass Titled Tuesday Blitz"]
[Site "Chess.com"]
[Date "2017.09.05"]
[Round "8"]
[White "OparinGrigoriy"]
[Black "Sebastian"]
[Result "1-0"]
[WhiteElo "2642"]
[BlackElo "2814"]
[TimeControl "180+2"]
[EndTime "14:59:34 PDT"]
[Termination "OparinGrigoriy won by resignation"]

1. e4 {[%clk 0:03:01.9]} 1... e5 {[%clk 0:03:01.6]} 2. Nf3 {[%clk 0:03:03.1]}
2... Nc6 {[%clk 0:03:02.7]} 3. Bc4 {[%clk 0:03:04.3]} 3... Bc5 {[%clk
0:03:02.5]} 4. c3 {[%clk 0:03:05.5]} 4... Nf6 {[%clk 0:03:03.4]} 5. d3 {[%clk
0:03:07]} 5... O-O {[%clk 0:03:04.4]} 6. Nbd2 {[%clk 0:03:06.1]} 6... d6 {[%clk
0:03:04.3]} 7. O-O {[%clk 0:03:06.2]} 7... Ne7 {[%clk 0:03:00]} 8. d4 {[%clk
0:03:03.7]} 8... exd4 {[%clk 0:02:58.3]} 9. cxd4 {[%clk 0:03:05.1]} 9... Bb6
{[%clk 0:03:00]} 10. e5 {[%clk 0:03:06.6]} 10... dxe5 {[%clk 0:02:18.3]} 11.
dxe5 {[%clk 0:03:08.5]} 11... Nfd5 {[%clk 0:02:19.2]} 12. Ne4 {[%clk 0:03:09.5]}
12... Bf5 {[%clk 0:02:14.5]} 13. Ng3 {[%clk 0:03:04.1]} 13... Bg6 {[%clk
0:01:47.5]} 14. Nh4 {[%clk 0:02:53.3]} 14... c6 {[%clk 0:01:43.3]} 15. Kh1
{[%clk 0:02:50.2]} 15... Nb4 {[%clk 0:01:33.2]} 16. Qg4 {[%clk 0:02:24.5]} 16...
Nd3 {[%clk 0:01:23]} 17. f4 {[%clk 0:02:05.8]} 17... Nf2+ {[%clk 0:01:15.2]} 18.
Rxf2 {[%clk 0:02:06.7]} 18... Bxf2 {[%clk 0:01:16.5]} 19. f5 {[%clk 0:01:56.5]}
19... Bxg3 {[%clk 0:00:54.1]} 20. hxg3 {[%clk 0:01:48.1]} 20... Nxf5 {[%clk
0:00:36.6]} 21. Nxf5 {[%clk 0:01:48.3]} 21... Bxf5 {[%clk 0:00:38.3]} 22. Qxf5
{[%clk 0:01:50.2]} 22... Qd1+ {[%clk 0:00:39.5]} 23. Kh2 {[%clk 0:01:51.5]}
23... Rae8 {[%clk 0:00:39.2]} 24. Bh6 {[%clk 0:01:22.8]} 24... Qd4 {[%clk
0:00:12.5]} 25. Bd3 {[%clk 0:00:53.6]} 25... g6 {[%clk 0:00:13.9]} 26. Qf6
{[%clk 0:00:55.2]} 26... Qxe5 {[%clk 0:00:15.6]} 27. Qxe5 {[%clk 0:00:56.3]}
27... Rxe5 {[%clk 0:00:17.2]} 28. Bxf8 {[%clk 0:00:57.7]} 28... Kxf8 {[%clk
0:00:19.1]} 29. Rd1 {[%clk 0:00:53]} 29... Ke7 {[%clk 0:00:19]} 30. Rd2 {[%clk
0:00:52.4]} 30... Rh5+ {[%clk 0:00:19.5]} 31. Kg1 {[%clk 0:00:52.8]} 31... Rg5
{[%clk 0:00:21.2]} 32. Kf2 {[%clk 0:00:53.7]} 32... a5 {[%clk 0:00:22.9]} 33.
Re2+ {[%clk 0:00:53.3]} 33... Kd7 {[%clk 0:00:22.6]} 34. Bc4 {[%clk 0:00:53.6]}
34... b5 {[%clk 0:00:22.6]} 35. Bd3 {[%clk 0:00:50.7]} 35... a4 {[%clk
0:00:19.7]} 36. Kf3 {[%clk 0:00:50.8]} 36... Rc5 {[%clk 0:00:19.9]} 37. Kf4
{[%clk 0:00:49.7]} 37... h6 {[%clk 0:00:14.8]} 38. g4 {[%clk 0:00:50.8]} 38...
Rd5 {[%clk 0:00:15]} 39. Be4 {[%clk 0:00:51.2]} 39... Rd1 {[%clk 0:00:13.2]} 40.
Rc2 {[%clk 0:00:50.1]} 40... Rd6 {[%clk 0:00:14.3]} 41. Bf3 {[%clk 0:00:45.5]}
41... Kc7 {[%clk 0:00:15.1]} 42. Re2 {[%clk 0:00:35.2]} 42... Kb6 {[%clk
0:00:16]} 43. Ke5 {[%clk 0:00:30.2]} 43... Re6+ {[%clk 0:00:16.3]} 44. Kd4
{[%clk 0:00:32.5]} 44... c5+ {[%clk 0:00:17.1]} 45. Kd5 {[%clk 0:00:30.9]} 45...
Rf6 {[%clk 0:00:17.3]} 46. Re8 {[%clk 0:00:31.1]} 46... Rf4 {[%clk 0:00:13.3]}
47. Rb8+ {[%clk 0:00:31.2]} 47... Ka5 {[%clk 0:00:14.7]} 48. Kxc5 {[%clk
0:00:24.2]} 48... Rc4+ {[%clk 0:00:16.1]} 49. Kd6 {[%clk 0:00:18.3]} 49... Rc2
{[%clk 0:00:18]} 50. b3 {[%clk 0:00:15.3]} 50... a3 {[%clk 0:00:15.9]} 51. Bc6
{[%clk 0:00:11.3]} 51... Rd2+ {[%clk 0:00:15.2]} 52. Kc5 {[%clk 0:00:10]} 52...
Rc2+ {[%clk 0:00:15.8]} 53. Kd6 {[%clk 0:00:11.2]} 53... Rd2+ {[%clk 0:00:16.7]}
54. Kc7 {[%clk 0:00:12.8]} 54... Kb4 {[%clk 0:00:12.8]} 55. Rxb5+ {[%clk
0:00:14.2]} 55... Kc3 {[%clk 0:00:14.7]} 56. Rc5+ {[%clk 0:00:14.7]} 56... Kb2
{[%clk 0:00:14]} 57. b4 {[%clk 0:00:16]} 57... Kxa2 {[%clk 0:00:15.1]} 58. b5
{[%clk 0:00:16.2]} 58... Kb2 {[%clk 0:00:15]} 59. Bd5 {[%clk 0:00:17.6]} 59...
a2 {[%clk 0:00:09.2]} 60. Bxa2 {[%clk 0:00:18.3]} 60... Kxa2 {[%clk 0:00:11.1]}
61. b6 {[%clk 0:00:19.5]} 1-0

[Event "*** MasterClass Titled Tuesday Blitz"]
[Site "Chess.com"]
[Date "2017.09.05"]
[Round "8"]
[White "Grebeniuk-S"]
[Black "IamSchrodingersCat"]
[Result "1-0"]
[WhiteElo "2415"]
[BlackElo "2428"]
[TimeControl "180+2"]
[EndTime "14:59:47 PDT"]
[Termination "Grebeniuk-S won by resignation"]

1. d4 {[%clk 0:03:01.9]} 1... Nf6 {[%clk 0:03:00.8]} 2. Nf3 {[%clk 0:03:02.8]}
2... g6 {[%clk 0:03:00.4]} 3. Bg5 {[%clk 0:03:04.2]} 3... Bg7 {[%clk 0:03:01.3]}
4. Nbd2 {[%clk 0:03:05.7]} 4... d5 {[%clk 0:03:02.3]} 5. e3 {[%clk 0:03:05.3]}
5... O-O {[%clk 0:03:02.9]} 6. Be2 {[%clk 0:03:05.6]} 6... c6 {[%clk 0:03:00]}
7. c4 {[%clk 0:03:03.6]} 7... Bf5 {[%clk 0:02:54.4]} 8. O-O {[%clk 0:02:58.5]}
8... Qb6 {[%clk 0:02:54]} 9. Qb3 {[%clk 0:02:53.5]} 9... Nbd7 {[%clk 0:02:52.2]}
10. cxd5 {[%clk 0:02:50.6]} 10... cxd5 {[%clk 0:02:44.9]} 11. Rac1 {[%clk
0:02:47.7]} 11... Rfc8 {[%clk 0:02:33.9]} 12. h3 {[%clk 0:02:43.7]} 12... h5
{[%clk 0:02:14.4]} 13. Nh4 {[%clk 0:02:32.6]} 13... Be6 {[%clk 0:02:13.1]} 14.
Nhf3 {[%clk 0:02:28.3]} 14... Bf5 {[%clk 0:02:11.7]} 15. Nh4 {[%clk 0:02:29.4]}
15... Be6 {[%clk 0:02:12.7]} 16. Qa3 {[%clk 0:02:30.8]} 16... Bf8 {[%clk
0:02:04.1]} 17. Bd3 {[%clk 0:02:24.4]} 17... Re8 {[%clk 0:01:20.8]} 18. Nhf3
{[%clk 0:02:14.6]} 18... Rac8 {[%clk 0:01:16.2]} 19. Qb3 {[%clk 0:02:08]} 19...
Bf5 {[%clk 0:00:35.1]} 20. Bxf5 {[%clk 0:02:01.5]} 20... Qxb3 {[%clk 0:00:35.8]}
21. Nxb3 {[%clk 0:01:59.1]} 21... gxf5 {[%clk 0:00:37]} 22. Na5 {[%clk
0:01:25.3]} 22... b6 {[%clk 0:00:32]} 23. Nc6 {[%clk 0:01:26.6]} 23... a5 {[%clk
0:00:30.5]} 24. Na7 {[%clk 0:01:20]} 24... Rxc1 {[%clk 0:00:23]} 25. Rxc1 {[%clk
0:01:21.9]} 25... Ne4 {[%clk 0:00:14.1]} 26. Rc7 {[%clk 0:01:20.2]} 26... Nb8
{[%clk 0:00:07.2]} 27. Bf4 {[%clk 0:01:13.4]} 27... Na6 {[%clk 0:00:06.5]} 28.
Rb7 {[%clk 0:01:10.9]} 28... Nb4 {[%clk 0:00:08]} 29. a3 {[%clk 0:00:47.8]}
29... Nd3 {[%clk 0:00:09]} 30. Rxb6 {[%clk 0:00:48.9]} 30... Nexf2 {[%clk
0:00:06]} 31. Nc6 {[%clk 0:00:37.7]} 31... a4 {[%clk 0:00:02.9]} 32. Nce5 {[%clk
0:00:31.8]} 32... Nxe5 {[%clk 0:00:03.6]} 33. Kxf2 {[%clk 0:00:21.3]} 33... Nc4
{[%clk 0:00:03.9]} 34. Rb5 {[%clk 0:00:21.1]} 34... e6 {[%clk 0:00:05.2]} 35.
Ne5 {[%clk 0:00:21]} 35... Nxe5 {[%clk 0:00:04.1]} 36. Bxe5 {[%clk 0:00:22.9]}
36... Rc8 {[%clk 0:00:05.5]} 37. Kf3 {[%clk 0:00:20.2]} 37... Rc2 {[%clk
0:00:06.2]} 38. Rb8 {[%clk 0:00:19.8]} 38... Rc6 {[%clk 0:00:04.5]} 39. Ra8
{[%clk 0:00:19]} 39... f6 {[%clk 0:00:05]} 40. Bxf6 {[%clk 0:00:17.8]} 40... Kf7
{[%clk 0:00:06.7]} 41. Be5 {[%clk 0:00:18.1]} 41... Rc2 {[%clk 0:00:08.3]} 42.
Ra7+ {[%clk 0:00:17.7]} 42... Ke8 {[%clk 0:00:08.7]} 43. Rxa4 {[%clk 0:00:17.9]}
43... Rxb2 {[%clk 0:00:10]} 44. Ra8+ {[%clk 0:00:19.1]} 44... Kf7 {[%clk
0:00:10.9]} 45. a4 {[%clk 0:00:20.3]} 45... Ra2 {[%clk 0:00:10.3]} 46. a5 {[%clk
0:00:20.9]} 46... Bb4 {[%clk 0:00:07.5]} 47. a6 {[%clk 0:00:17.6]} 47... Be1
{[%clk 0:00:08.9]} 48. Bg3 {[%clk 0:00:13.9]} 48... Bb4 {[%clk 0:00:07.7]} 49.
a7 {[%clk 0:00:11.9]} 49... Be7 {[%clk 0:00:06.1]} 50. Bc7 {[%clk 0:00:08.6]}
50... h4 {[%clk 0:00:05.6]} 51. Bb6 {[%clk 0:00:08.8]} 51... Bb4 {[%clk
0:00:05.6]} 52. Rh8 {[%clk 0:00:04.1]} 52... Be1 {[%clk 0:00:07.5]} 53. e4
{[%clk 0:00:02.5]} 53... dxe4+ {[%clk 0:00:05.7]} 54. Ke3 {[%clk 0:00:04.1]}
54... Bf2+ {[%clk 0:00:06.6]} 55. Kf4 {[%clk 0:00:05.6]} 55... Bg3+ {[%clk
0:00:05.3]} 56. Kg5 {[%clk 0:00:06.8]} 56... f4 {[%clk 0:00:05.4]} 57. a8=Q
{[%clk 0:00:08]} 57... Rxa8 {[%clk 0:00:06.9]} 58. Rxa8 {[%clk 0:00:09.7]} 58...
f3 {[%clk 0:00:08.6]} 59. d5 {[%clk 0:00:10.8]} 59... exd5 {[%clk 0:00:08.1]}
60. gxf3 {[%clk 0:00:12.1]} 60... exf3 {[%clk 0:00:10]} 61. Kg4 {[%clk
0:00:13.2]} 61... f2 {[%clk 0:00:10.2]} 62. Ra1 {[%clk 0:00:13.7]} 62... d4
{[%clk 0:00:12.1]} 63. Bxd4 {[%clk 0:00:14.2]} 63... Ke6 {[%clk 0:00:13.8]} 64.
Kf3 {[%clk 0:00:15.5]} 64... Kd5 {[%clk 0:00:15]} 65. Bxf2 {[%clk 0:00:16]} 1-0